bitfinex-derivatives/quotes_SOLF0:USTF0_20260203
["timestamp","ask_amount","ask_price","bid_price","bid_amount"]
[1770141541856,169.18167087,99.14,99.043,40.35008955]
[1770141542056,21.61812746,99.132,99.045,40.35008955]
[1770141542355,21.54203887,99.176,99.077,40.35008955]
[1770141542555,21.54203887,99.176,99.071,141.461]
[1770141542556,21.54203887,99.176,99.093,40.35008955]
[1770141542960,30.62263887,99.217,99.123,40.35008955]
[1770141543157,21.54203887,99.216,99.131,40.35008955]
[1770141543357,21.54203887,99.216,99.12,141.3907]
[1770141543358,141.2194,99.241,99.134,40.35008955]
[1770141543656,21.41885317,99.262,99.172,141.3159]
[1770141543854,21.41885317,99.262,99.176,40.35008955]
[1770141544060,21.41885317,99.293,99.2,40.35008955]
[1770141544256,21.41885317,99.263,99.179,40.35008955]
[1770141544456,21.3443913,99.232,99.157,40.35008955]
[1770141544657,21.3443913,99.203,99.132,40.35008955]
[1770141545361,162.6182913,99.203,99.132,40.35008955]
[1770141545556,23.37742085,99.2,99.132,40.35008955]
[1770141545960,377.04,99.243,99.134,40.35008955]
[1770141546153,377.04,99.243,99.109,141.4059]
[1770141546154,23.37742085,99.259,99.169,141.3207]
[1770141546357,23.37742085,99.259,99.176,40.35008955]
[1770141546757,141.1957,99.258,99.176,40.35008955]
[1770141546959,164.49827895,99.258,99.176,40.35008955]
[1770141547464,23.30257895,99.258,99.176,40.35008955]
[1770141549257,30.15945635,99.248,99.176,40.35008955]
[1770141549458,30.00052686,99.263,99.176,40.35008955]
[1770141550159,39.07682686,99.263,99.176,40.35008955]
[1770141550360,30.00052686,99.262,99.176,40.35008955]
[1770141550557,30.00052686,99.262,99.15,6.20714492]
[1770141550558,29.92296033,99.222,99.133,40.35008955]
[1770141550761,180.25616033,99.218,99.133,40.35008955]
[1770141550959,141.2683,99.207,99.133,40.35008955]
[1770141551166,6.20714492,99.21,99.133,40.35008955]
[1770141551363,9.0813,99.209,99.133,40.35008955]
[1770141552164,29.79398829,99.181,99.11,40.35008955]
[1770141552367,141.3032,99.182,99.11,40.35008955]
[1770141552368,29.79398829,99.202,99.11,40.35008955]
[1770141552670,141.2765,99.201,99.11,40.35008955]
[1770141552868,29.71979411,99.2,99.11,40.35008955]
[1770141553065,141.2296,99.234,99.123,40.35008955]
[1770141553066,379.52,99.217,99.123,40.35008955]
[1770141554163,9.0806,99.216,99.13,40.35008955]
[1770141554467,379.52,99.217,99.134,40.35008955]
[1770141555659,9.0807,99.216,99.136,40.35008955]
[1770141556061,141.2854,99.195,99.121,40.35008955]
[1770141556867,141.2283,99.235,99.143,40.35008955]
[1770141557469,381.36,99.237,99.147,40.35008955]
[1770141558073,141.2408,99.226,99.147,40.35008955]
[1770141558470,141.2444,99.223,99.147,40.35008955]
[1770141558774,9.0819,99.202,99.147,40.35008955]
[1770141559370,9.0809,99.214,99.147,40.35008955]
[1770141560473,9.0815,99.207,99.147,40.35008955]
[1770141560872,6.20714492,99.22,99.119,274.94]
[1770141560873,26.54089829,99.206,99.127,9.0887]
[1770141561178,9.0824,99.197,99.126,37.08774763]
[1770141561476,26.54089829,99.195,99.126,37.08774763]
[1770141562078,26.54089829,99.195,99.129,37.08774763]
[1770141562274,26.36781079,99.217,99.133,37.08774763]
[1770141562474,26.36781079,99.217,99.14,37.08774763]
[1770141562673,9.0794,99.229,99.162,9.0855]
[1770141562873,26.30379204,99.237,99.162,9.0855]
[1770141563075,26.30379204,99.237,99.162,46.17324763]
[1770141563273,26.30379204,99.237,99.172,9.0846]
[1770141564071,26.30379204,99.237,99.172,46.17234763]
[1770141564276,26.28141922,99.258,99.189,37.08774763]
[1770141564476,9.075,99.278,99.198,37.08774763]
[1770141564675,26.21870137,99.277,99.198,37.08774763]
[1770141565076,26.21870137,99.275,99.198,37.08774763]
[1770141565678,9.0754,99.273,99.198,37.08774763]
[1770141565879,26.17587317,99.273,99.198,37.08774763]
[1770141566481,9.0766,99.26,99.198,37.08774763]
[1770141566678,9.0766,99.26,99.145,141.3545]
[1770141566679,26.114439,99.24,99.146,37.08774763]
[1770141567180,26.114439,99.229,99.146,37.08774763]
[1770141567376,141.2523,99.218,99.146,37.08774763]
[1770141567583,9.082,99.201,99.146,37.08774763]
[1770141568584,9.083,99.19,99.146,37.08774763]
[1770141569581,9.083,99.19,99.115,274.58]
[1770141569782,141.3026,99.183,99.116,37.08774763]
[1770141570784,9.085,99.169,99.116,37.08774763]
[1770141571781,30.04822059,99.192,99.116,37.08774763]
[1770141572184,141.29,99.191,99.116,37.08774763]
[1770141572581,9.084,99.179,99.116,37.08774763]
[1770141573586,9.0854,99.164,99.116,37.08774763]
[1770141574395,9.0862,99.155,99.116,37.08774763]
[1770141575498,9.0862,99.155,99.086,274.4]
[1770141575499,29.57790923,99.169,99.086,274.4]
[1770141575704,29.57790923,99.119,99.052,37.08774763]
[1770141576200,382.58,99.126,99.052,37.08774763]
[1770141576792,29.57790923,99.14,99.052,37.08774763]
[1770141577197,170.9083073,99.124,99.052,37.08774763]
[1770141577401,29.5219073,99.12,99.052,37.08774763]
[1770141577795,9.0895,99.119,99.052,37.08774763]
[1770141577995,29.5219073,99.12,99.052,37.08774763]
[1770141579001,29.77200352,99.118,99.029,37.08774763]
[1770141580598,29.77200352,99.118,99.031,37.08774763]
[1770141580989,29.77200352,99.118,99.04,37.08774763]
[1770141581193,29.77200352,99.118,99.045,37.08774763]
[1770141581601,29.77200352,99.118,99.02,416.6334]
[1770141581602,29.77200352,99.118,99.025,37.08774763]
[1770141581800,384.14,99.128,99.025,37.08774763]
[1770141581801,28.97254098,99.111,99.025,37.08774763]
[1770141582403,28.91985232,99.109,99.025,37.08774763]
[1770141583602,28.91985232,99.109,99.028,37.08774763]
[1770141584301,28.87075257,99.109,99.031,37.08774763]
[1770141584702,6.20714492,99.1,98.979,37.08774763]
[1770141585000,384.46,99.11,98.991,141.5754]
[1770141585001,28.81978256,99.083,98.991,141.5754]
[1770141585298,141.3868,99.124,98.991,141.5754]
[1770141585299,28.81978256,99.123,99.028,37.08774763]
[1770141585499,28.81978256,99.123,99.037,37.08774763]
[1770141585699,28.81978256,99.123,99.044,37.08774763]
[1770141585898,28.95926149,99.113,99.021,37.08774763]
[1770141586099,28.95926149,99.113,99.025,37.08774763]
[1770141586295,28.95926149,99.113,99.03,37.08774763]
[1770141587303,28.90969653,99.094,99.03,37.08774763]
[1770141587501,29.10253509,99.093,99.03,37.08774763]
[1770141588400,27.29710629,99.053,98.946,37.08774763]
[1770141588602,80.54,99.06,98.961,37.08774763]
[1770141588807,80.54,99.097,98.999,37.08774763]
[1770141588999,27.29710629,99.096,99.011,37.08774763]
[1770141589205,141.3842,99.125,99.008,141.5509]
[1770141589206,27.29710629,99.117,99.023,37.08774763]
[1770141589404,27.29710629,99.117,99.031,37.08774763]
[1770141589999,27.29710629,99.117,99.039,37.08774763]
[1770141590604,27.29710629,99.117,99.041,36.78331745]
[1770141590807,27.29710629,99.117,99.042,36.78331745]
[1770141591006,27.29710629,99.117,99.048,36.78331745]
[1770141591203,27.55476647,99.101,99.022,36.78331745]
[1770141592305,27.55476647,99.101,99.018,141.5358]
[1770141592306,27.55476647,99.101,99.035,36.78331745]
[1770141592904,20.27258662,99.122,99.039,36.78331745]
[1770141593510,141.3672,99.137,99.03,6.20714492]
[1770141593511,170.28435417,99.121,99.043,36.78331745]
[1770141593711,28.89335417,99.121,99.043,36.78331745]
[1770141594220,9.0901,99.113,99.043,36.78331745]
[1770141595107,19.73545603,99.108,99.043,36.78331745]
[1770141595510,19.39052931,99.094,99.005,36.35982471]
[1770141595709,62.0,99.08,99.005,36.35982471]
[1770141595910,19.39052931,99.094,99.009,36.35982471]
[1770141596514,19.39052931,99.094,99.023,36.35982471]
[1770141596915,19.39052931,99.094,99.003,36.35982471]
[1770141597307,19.3532896,99.087,99.003,36.35982471]
[1770141598015,19.38137106,99.073,98.985,36.35982471]
[1770141598215,19.38137106,99.073,98.987,36.35982471]
[1770141598415,19.38137106,99.073,98.991,36.35982471]
[1770141598719,388.92,99.075,99.003,36.35982471]
[1770141598917,19.34538295,99.092,99.003,36.35982471]
[1770141599809,9.0922,99.09,99.016,36.35982471]
[1770141600008,9.0922,99.09,99.002,141.5589]
[1770141600009,22.73135987,99.121,99.02,36.35982471]
[1770141600313,22.73135987,99.102,99.031,36.35982471]
[1770141601309,389.76,99.124,99.031,36.35982471]
[1770141601310,22.6948108,99.122,99.031,36.35982471]
[1770141601513,22.6948108,99.122,99.026,141.5249]
[1770141601517,16.86751501,99.12,99.044,36.35982471]
[1770141602112,16.86751501,99.161,99.065,36.35982471]
[1770141602609,16.86751501,99.161,99.069,36.35982471]
[1770141603313,6.20741013,99.18,99.06,286.46741013]
[1770141603314,35.66454021,99.223,99.127,36.35982471]
[1770141603716,35.66454021,99.223,99.141,36.35982471]
[1770141603909,35.66454021,99.223,99.147,36.35982471]
[1770141604320,35.66454021,99.223,99.156,36.35982471]
[1770141604620,6.20741013,99.27,99.156,36.35982471]
[1770141604621,35.66454021,99.249,99.156,36.35982471]
[1770141604812,35.66454021,99.249,99.166,36.35982471]
[1770141605018,35.66454021,99.249,99.173,36.35982471]
[1770141605214,35.66454021,99.23,99.131,141.3748]
[1770141605418,35.66454021,99.212,99.127,36.35982471]
[1770141605726,35.66454021,99.212,99.14,36.35982471]
[1770141605913,35.66454021,99.235,99.163,36.35982471]
[1770141606112,35.66454021,99.235,99.142,36.35982471]
[1770141606321,35.66454021,99.235,99.141,423.2404]
[1770141606322,35.66454021,99.235,99.163,36.35982471]
[1770141606821,35.66454021,99.224,99.14,36.35982471]
[1770141607122,35.66454021,99.209,99.12,36.35982471]
[1770141607317,35.66454021,99.209,99.124,141.3853]
[1770141607616,35.66454021,99.231,99.147,36.35982471]
[1770141608012,35.66454021,99.219,99.124,36.35982471]
[1770141608215,35.66454021,99.216,99.124,36.35982471]
[1770141608414,35.66454021,99.199,99.124,36.35982471]
[1770141608621,35.66454021,99.199,99.106,282.82]
[1770141608815,35.66454021,99.199,99.107,36.35982471]
[1770141609019,35.66454021,99.199,99.113,36.35982471]
[1770141609520,141.2868,99.194,99.113,36.35982471]
[1770141609724,141.2868,99.194,99.071,141.4599]
[1770141609725,35.66454021,99.179,99.086,36.35982471]
[1770141610317,141.2916,99.19,99.08,283.44]
[1770141610318,35.66454021,99.159,99.08,283.44]
[1770141610523,35.66454021,99.159,99.081,36.35982471]
[1770141611820,35.66454021,99.159,99.069,36.35982471]
[1770141612922,35.66454021,99.159,99.071,36.35982471]
[1770141613223,35.66454021,99.152,99.071,36.35982471]
[1770141614130,35.66454021,99.174,99.092,9.0919]
[1770141614426,35.66454021,99.174,99.093,36.35982471]
[1770141614823,35.66454021,99.163,99.07,36.35982471]
[1770141616425,35.66454021,99.153,99.07,36.35982471]
[1770141616629,35.66454021,99.139,99.049,36.35982471]
[1770141617031,35.66454021,99.139,99.054,36.35982471]
[1770141617524,35.66454021,99.155,99.068,36.35982471]
[1770141617828,394.12,99.156,99.068,36.35982471]
[1770141617829,35.66454021,99.147,99.068,36.35982471]
[1770141618128,35.66454021,99.139,99.068,36.35982471]
[1770141618329,9.089,99.125,99.056,9.0952]
[1770141618525,9.089,99.125,99.048,36.35982471]
[1770141618733,35.66454021,99.124,99.048,36.35982471]
[1770141619226,35.66454021,99.118,99.048,36.35982471]
[1770141619625,35.66454021,99.113,99.024,36.35982471]
[1770141619933,35.66454021,99.104,99.026,36.35982471]
[1770141620526,141.3709,99.135,99.026,36.35982471]
[1770141620527,36.42078606,99.126,99.044,37.99440344]
[1770141620731,36.42078606,99.126,99.047,37.99440344]
[1770141621224,36.42078606,99.126,99.062,9.0947]
[1770141621831,394.32,99.134,99.066,37.99440344]
[1770141622226,36.42078606,99.146,99.066,37.99440344]
[1770141622430,36.42078606,99.145,99.066,37.99440344]
[1770141622831,36.42078606,99.141,99.066,37.99440344]
[1770141624237,36.42078606,99.141,99.068,37.99440344]
[1770141625227,36.42078606,99.106,99.027,37.99440344]
[1770141625431,36.42078606,99.106,99.007,37.99440344]
[1770141625633,36.42078606,99.089,99.009,9.0996]
[1770141625840,36.42078606,99.087,99.007,37.99440344]
[1770141627132,141.4215,99.099,98.977,286.54]
[1770141627133,45.51128606,99.108,99.037,37.99440344]
[1770141627337,45.51128606,99.108,99.016,141.5391]
[1770141627338,36.42078606,99.108,99.041,37.99440344]
[1770141628034,36.42078606,99.108,99.003,141.5581]
[1770141628035,36.42078606,99.106,99.014,37.99440344]
[1770141628232,36.42078606,99.099,99.014,37.99440344]
[1770141628432,45.51308606,99.089,99.024,9.0982]
[1770141629038,45.51308606,99.089,99.0,141.5624]
[1770141629039,36.42078606,99.109,99.038,37.99440344]
[1770141629434,9.0906,99.107,99.038,37.99440344]
[1770141629742,36.21462017,99.106,99.038,37.99440344]
[1770141630242,36.21462017,99.092,99.022,47.09270344]
[1770141630838,36.21462017,99.092,99.031,9.0975]
[1770141631737,394.36,99.108,99.041,37.99440344]
[1770141631938,35.79616171,99.113,99.046,37.99440344]
[1770141632136,35.79616171,99.113,99.05,37.99440344]
[1770141632740,35.79616171,99.113,99.062,9.0946]
[1770141633037,35.74535421,99.146,99.059,37.99440344]
[1770141633235,35.74535421,99.146,99.058,141.4795]
[1770141633236,35.74535421,99.146,99.079,179.44290344]
[1770141633430,35.74535421,99.146,99.079,37.99440344]
[1770141633737,35.54370469,99.143,99.059,37.99440344]
[1770141633941,35.54370469,99.143,99.02,6.20741013]
[1770141633942,35.54370469,99.101,99.039,37.99440344]
[1770141634235,35.54370469,99.101,99.029,9.0977]
[1770141634436,6.20741013,99.11,99.018,9.0987]
[1770141634437,35.49438268,99.098,99.018,9.0987]
[1770141635143,35.49438268,99.089,99.018,9.0987]
[1770141635343,9.0933,99.078,99.016,37.99440344]
[1770141635642,35.49438268,99.089,99.016,37.99440344]
[1770141636036,35.49438268,99.089,99.032,9.0974]
[1770141636232,35.49438268,99.089,99.016,37.99440344]
[1770141636642,9.0925,99.086,99.012,9.0993]
[1770141636843,44.50738212,99.086,99.012,9.0993]
[1770141637149,35.41488212,99.081,99.011,9.0994]
[1770141637441,35.2191523,99.063,98.964,37.99440344]
[1770141637647,6.20741013,99.07,98.964,37.99440344]
[1770141637648,35.2191523,99.055,98.964,37.99440344]
[1770141637943,35.2191523,99.055,98.977,37.99440344]
[1770141638341,35.2191523,99.055,98.985,37.99440344]
[1770141638938,35.2191523,99.055,98.988,9.1015]
[1770141639246,62.0,99.05,98.988,9.1015]
[1770141639450,395.06,99.067,98.998,9.1005]
[1770141639644,34.96111374,99.066,98.998,47.09490344]
[1770141640243,34.96111374,99.064,98.998,47.09490344]
[1770141640544,34.96111374,99.064,98.977,37.99440344]
[1770141641741,34.23010647,99.059,98.989,9.1014]
[1770141642248,34.23010647,99.059,98.99,37.99440344]
[1770141644851,33.02003256,99.057,98.99,37.99440344]
[1770141645251,33.02003256,99.057,99.006,9.0998]
[1770141646147,32.8909228,99.076,99.015,9.0989]
[1770141646452,32.84899573,99.092,99.012,37.99440344]
[1770141646754,32.84899573,99.092,99.005,141.555]
[1770141646755,32.84899573,99.092,99.018,37.99440344]
[1770141647051,32.84899573,99.092,98.977,141.5951]
[1770141647052,32.84899573,99.069,98.973,37.99440344]
[1770141647248,9.0957,99.052,98.992,9.1011]
[1770141647656,9.0957,99.052,98.973,37.99440344]
[1770141648149,396.22,99.056,98.991,9.1012]
[1770141648353,396.22,99.056,98.991,47.09560344]
[1770141648654,396.22,99.056,99.01,9.0995]
[1770141648850,32.84899573,99.069,99.003,141.5578]
[1770141649054,32.84899573,99.069,99.009,37.99440344]
[1770141649250,6.20741013,99.11,99.008,141.5505]
[1770141649251,172.32,99.097,99.012,37.99440344]
[1770141649550,34.00616691,99.089,99.024,9.0981]
[1770141650757,43.06877183,99.088,99.024,9.0981]
[1770141651060,33.97647183,99.087,99.024,9.0981]
[1770141652159,33.97647183,99.087,99.033,9.0973]
[1770141653564,34.64044436,99.105,99.039,35.17027916]
[1770141653962,34.64044436,99.105,99.049,9.0959]
[1770141654262,342.72,99.116,99.05,35.17027916]
[1770141654464,34.60119276,99.181,99.051,285.88]
[1770141654658,34.60119276,99.181,99.114,35.17027916]
[1770141654857,141.1739,99.273,99.14,141.3617]
[1770141655055,141.1739,99.273,99.135,35.17027916]
[1770141655056,141.1483,99.291,99.186,141.2966]
[1770141655259,12.26378255,99.345,99.211,35.17027916]
[1770141655260,141.0857,99.335,99.211,35.17027916]
[1770141655566,141.0857,99.335,99.188,141.2937]
[1770141655567,6.20741013,99.35,99.249,141.207]
[1770141655762,141.0167,99.384,99.249,141.207]
[1770141655763,161.28,99.357,99.273,141.1723]
[1770141655962,6.20741013,99.36,99.283,141.1585]
[1770141655963,161.28,99.356,99.283,141.1585]
[1770141656265,6.20741013,99.36,99.265,141.184]
[1770141656266,173.1,99.355,99.265,141.184]
[1770141656466,173.1,99.355,99.22,6.20741013]
[1770141656467,6.20741013,99.34,99.246,141.2114]
[1770141656765,6.20741013,99.34,99.238,141.2225]
[1770141656766,34.6545992,99.339,99.238,141.2225]
[1770141656968,34.6545992,99.319,99.238,141.2225]
[1770141657261,34.6545992,99.319,99.246,35.17027916]
[1770141657462,34.6545992,99.319,99.266,141.1818]
[1770141657766,34.6545992,99.319,99.246,35.17027916]
[1770141657963,34.6545992,99.319,99.259,141.1921]
[1770141658356,35.7862596,99.354,99.26,35.17027916]
[1770141658671,35.7862596,99.354,99.252,141.2027]
[1770141658672,35.7862596,99.339,99.24,35.17027916]
[1770141658863,35.7862596,99.339,99.247,141.2097]
[1770141659260,141.0939,99.329,99.24,35.17027916]
[1770141659563,35.7862596,99.319,99.217,141.2516]
[1770141659764,35.7862596,99.319,99.216,35.17027916]
[1770141660259,6.20741013,99.3,99.2,141.2767]
[1770141660465,6.20741013,99.3,99.192,35.17027916]
[1770141660466,35.7862596,99.272,99.192,35.17027916]
[1770141660665,35.7862596,99.27,99.192,35.17027916]
[1770141660861,35.7862596,99.27,99.161,288.96]
[1770141660862,35.7862596,99.259,99.17,35.17027916]
[1770141661065,35.7862596,99.25,99.17,35.17027916]
[1770141661269,62.0,99.24,99.166,141.3248]
[1770141661565,35.7862596,99.305,99.222,176.41487916]
[1770141661966,35.7862596,99.305,99.2,35.17027916]
[1770141662160,35.7862596,99.305,99.216,35.17027916]
[1770141662365,35.7862596,99.299,99.194,35.17027916]
[1770141662564,35.7862596,99.289,99.194,35.17027916]
[1770141662758,35.7862596,99.28,99.194,35.17027916]
[1770141662967,35.7862596,99.28,99.183,141.3009]
[1770141662968,35.7862596,99.291,99.203,35.17027916]
[1770141663468,35.7862596,99.277,99.171,35.17027916]
[1770141663766,35.7862596,99.229,99.149,35.17027916]
[1770141664869,400.78,99.243,99.162,35.17027916]
[1770141665064,6.19924685,99.29,99.196,35.17027916]
[1770141665268,35.7862596,99.297,99.214,35.17027916]
[1770141665968,35.7862596,99.296,99.214,35.17027916]
[1770141666169,400.82,99.297,99.18,6.19924685]
[1770141666170,141.1574,99.285,99.192,35.17027916]
[1770141666368,400.82,99.297,99.216,35.17027916]
[1770141666676,35.7862596,99.322,99.227,35.17027916]
[1770141667265,35.7862596,99.315,99.227,35.17027916]
[1770141667566,35.7862596,99.315,99.229,35.17027916]
[1770141667770,401.32,99.323,99.24,35.17027916]
[1770141668166,35.7862596,99.318,99.24,35.17027916]
[1770141669072,35.7862596,99.337,99.24,35.17027916]
[1770141669271,35.7862596,99.359,99.263,35.17027916]
[1770141669471,140.9955,99.399,99.291,35.17027916]
[1770141669472,35.7862596,99.385,99.291,35.17027916]
[1770141669668,140.9809,99.409,99.284,141.1573]
[1770141669669,35.7862596,99.418,99.309,35.17027916]
[1770141669873,140.9373,99.44,99.321,35.17027916]
[1770141669874,140.99,99.403,99.321,35.17027916]
[1770141670066,35.7862596,99.403,99.321,35.17027916]
[1770141670470,35.7862596,99.403,99.332,35.17027916]
[1770141670676,35.7862596,99.426,99.332,35.17027916]
[1770141670868,140.976,99.412,99.332,35.17027916]
[1770141671068,35.7862596,99.38,99.293,35.17027916]
[1770141671282,35.7862596,99.345,99.262,35.17027916]
[1770141671572,176.8793596,99.33,99.245,35.17027916]
[1770141672270,185.9495596,99.33,99.245,35.17027916]
[1770141672473,330.3,99.353,99.186,141.2964]
[1770141672474,35.7862596,99.307,99.221,35.17027916]
[1770141672769,6.19924685,99.3,99.197,35.17027916]
[1770141672966,6.19924685,99.3,99.188,141.294]
[1770141672967,6.19924685,99.3,99.207,35.17027916]
[1770141673164,6.19924685,99.3,99.209,35.17027916]
[1770141673367,6.19924685,99.3,99.2,141.2766]
[1770141673368,35.7862596,99.31,99.221,35.17027916]
[1770141673865,35.7862596,99.31,99.221,44.25037916]
[1770141674071,35.7862596,99.31,99.222,35.17027916]
[1770141674274,141.1372,99.299,99.222,35.17027916]
[1770141674574,9.073,99.299,99.222,35.17027916]
[1770141674771,141.1505,99.29,99.222,35.17027916]
[1770141675365,402.16,99.293,99.222,35.17027916]
[1770141675366,141.1588,99.284,99.222,35.17027916]
[1770141675771,141.1712,99.275,99.191,35.17027916]
[1770141675970,141.1753,99.272,99.191,35.17027916]
[1770141676171,9.0764,99.263,99.191,35.17027916]
[1770141676568,35.7862596,99.328,99.229,35.17027916]
[1770141676772,402.14,99.327,99.242,9.0782]
[1770141677266,9.0707,99.325,99.246,9.0778]
[1770141677464,402.14,99.327,99.247,35.17027916]
[1770141677671,141.1035,99.323,99.247,35.17027916]
[1770141677873,35.7862596,99.326,99.247,35.17027916]
[1770141678576,35.7862596,99.326,99.193,141.287]
[1770141678577,35.7862596,99.353,99.269,35.17027916]
[1770141678769,141.0214,99.38,99.255,141.1987]
[1770141678770,35.7862596,99.378,99.281,35.17027916]
[1770141678969,141.0201,99.381,99.259,35.17027916]
[1770141678970,35.7862596,99.349,99.259,35.17027916]
[1770141679366,35.7862596,99.344,99.259,35.17027916]
[1770141679974,35.7862596,99.344,99.235,141.2273]
[1770141679975,35.7862596,99.329,99.235,35.17027916]
[1770141680375,36.23865463,99.405,99.294,36.82043265]
[1770141680571,140.9858,99.406,99.283,141.1589]
[1770141680572,36.23865463,99.398,99.3,36.82043265]
[1770141680877,36.23865463,99.382,99.3,36.82043265]
[1770141681073,36.23865463,99.376,99.3,36.82043265]
[1770141681266,141.0152,99.385,99.277,435.4662]
[1770141681267,36.23865463,99.369,99.277,331.12043265]
[1770141681469,36.23865463,99.369,99.278,36.82043265]
[1770141681974,36.23865463,99.367,99.283,9.0744]
[1770141682470,36.23865463,99.351,99.259,36.82043265]
[1770141682670,438.31865463,99.35,99.259,36.82043265]
[1770141682870,36.23865463,99.373,99.279,36.82043265]
[1770141683072,361.78,99.372,99.299,9.0729]
[1770141683282,36.23865463,99.371,99.297,36.82043265]
[1770141683467,45.30505463,99.371,99.297,36.82043265]
[1770141683671,45.30505463,99.371,99.248,141.2086]
[1770141683672,36.23865463,99.36,99.273,36.82043265]
[1770141684274,36.23865463,99.383,99.294,36.82043265]
[1770141684483,36.23865463,99.383,99.302,36.82043265]
[1770141685267,36.23865463,99.383,99.306,36.82043265]
[1770141685669,141.0249,99.378,99.306,36.82043265]
[1770141685872,36.23865463,99.368,99.278,36.82043265]
[1770141686474,9.0671,99.364,99.278,36.82043265]
[1770141686889,36.23865463,99.384,99.296,36.82043265]
[1770141687178,36.23865463,99.382,99.296,36.82043265]
[1770141687375,9.0677,99.357,99.296,36.82043265]
[1770141687679,36.23865463,99.352,99.27,36.82043265]
[1770141687878,438.21865463,99.352,99.27,36.82043265]
[1770141688274,9.0688,99.346,99.27,36.82043265]
[1770141688475,177.31505463,99.342,99.27,36.82043265]
[1770141688678,9.0707,99.324,99.27,36.82043265]
[1770141689778,9.0697,99.335,99.27,36.82043265]
[1770141691781,9.0708,99.324,99.27,36.82043265]
[1770141692183,9.072,99.31,99.247,36.82043265]
[1770141692381,438.17865463,99.327,99.247,36.82043265]
[1770141693285,9.0719,99.312,99.248,45.89803265]
[1770141693674,9.0706,99.326,99.26,9.0765]
[1770141693874,36.23865463,99.346,99.261,36.82043265]
[1770141694080,36.23865463,99.334,99.261,36.82043265]
[1770141695686,9.0705,99.327,99.261,36.82043265]
[1770141695980,141.0883,99.333,99.261,36.82043265]
[1770141696187,36.23865463,99.329,99.261,36.82043265]
[1770141696386,401.94,99.352,99.261,36.82043265]
[1770141696689,36.23865463,99.351,99.261,36.82043265]
[1770141697280,36.23865463,99.351,99.246,141.2109]
[1770141697281,36.23865463,99.348,99.262,45.89673265]
[1770141697485,36.23865463,99.335,99.241,36.82043265]
[1770141697787,36.23865463,99.335,99.246,36.82043265]
[1770141697987,9.0701,99.331,99.261,9.0764]
[1770141698190,9.0701,99.331,99.261,45.89683265]
[1770141698688,9.071,99.322,99.261,36.82043265]
[1770141698986,401.94,99.337,99.261,36.82043265]
[1770141699291,9.0682,99.352,99.284,45.89473265]
[1770141699590,141.0116,99.387,99.288,36.82043265]
[1770141699591,36.23865463,99.38,99.288,36.82043265]
[1770141699786,36.23865463,99.378,99.288,36.82043265]
[1770141700087,36.23865463,99.378,99.292,45.89403265]
[1770141700088,36.23865463,99.369,99.292,45.89403265]
[1770141700390,36.23865463,99.369,99.292,36.82043265]
[1770141700986,36.23865463,99.355,99.271,36.82043265]
[1770141701386,9.0687,99.347,99.275,36.82043265]
[1770141701987,36.23865463,99.337,99.275,36.82043265]
[1770141702388,36.23865463,99.337,99.243,141.2147]
[1770141702389,36.23865463,99.337,99.251,45.89783265]
[1770141702694,9.0722,99.308,99.251,36.82043265]
[1770141703593,9.0709,99.323,99.251,36.82043265]
[1770141704092,9.0718,99.313,99.251,36.82043265]
[1770141704284,36.23865463,99.327,99.251,36.82043265]
[1770141704489,401.92,99.326,99.251,36.82043265]
[1770141705192,42.42484392,99.37,99.276,141.1683]
[1770141705494,36.23865463,99.37,99.291,36.82043265]
[1770141705895,9.0677,99.357,99.291,36.82043265]
[1770141707493,36.23865463,99.345,99.267,36.82043265]
[1770141707893,6.18618929,99.35,99.267,36.82043265]
[1770141707894,36.23865463,99.343,99.267,36.82043265]
[1770141708194,401.94,99.342,99.267,36.82043265]
[1770141708597,9.0711,99.32,99.267,36.82043265]
[1770141709192,9.0702,99.33,99.267,36.82043265]
[1770141709591,36.23865463,99.343,99.267,36.82043265]
[1770141709792,9.0702,99.33,99.268,9.0758]
[1770141709992,36.23865463,99.343,99.268,45.89623265]
[1770141710394,9.0701,99.331,99.268,45.89623265]
[1770141710594,177.31345463,99.343,99.268,36.82043265]
[1770141710791,36.23865463,99.343,99.268,36.82043265]
[1770141710997,36.23865463,99.343,99.271,36.74581289]
[1770141711397,9.0719,99.321,99.265,12.17850498]
[1770141711594,36.31989845,99.324,99.251,36.74581289]
[1770141711899,36.31989845,99.317,99.251,36.74581289]
[1770141712301,9.0738,99.3,99.251,36.74581289]
[1770141712592,6.18618929,99.33,99.221,295.74]
[1770141712593,401.92,99.325,99.254,36.74581289]
[1770141712993,9.0728,99.311,99.254,36.74581289]
[1770141713198,401.92,99.325,99.254,36.74581289]
[1770141716504,37.35455794,99.281,99.223,9.0808]
[1770141717102,37.35455794,99.281,99.197,141.2943]